bitfinex-derivatives/quotes_SOLF0:USTF0_20250301
["timestamp","ask_amount","ask_price","bid_price","bid_amount"]
[1740813713825,1.9247,143.02,142.96,223.88]
[1740813714123,1.9247,143.02,143.0,5.5965]
[1740813714724,1.9247,143.02,142.99,5.5967]
[1740813715025,7.5207,143.02,142.96,223.88]
[1740813715219,1.9247,143.02,142.96,223.88]
[1740813716426,5.5961,143.01,142.98,5.5972]
[1740813717826,5.5966,143.0,142.97,5.5976]
[1740813718022,5.5966,143.0,142.92,12.50591719]
[1740813718227,0.04515241,142.97,142.92,12.50591719]
[1740813718427,0.04515241,142.97,142.96,5.5979]
[1740813721129,0.04515241,142.97,142.89,225.6431]
[1740813721525,0.04515241,142.97,142.89,223.84]
[1740813721828,5.5992,142.94,142.9,5.6002]
[1740813722031,10.04,142.95,142.86,1.399972]
[1740813722217,0.04489212,142.93,142.84,13.7723]
[1740813722423,10.04,142.95,142.87,5.6013]
[1740813722633,0.05343547,142.9,142.87,5.6013]
[1740813723930,10.09343547,142.9,142.83,1.9224]
[1740813724130,10.09343547,142.9,142.84,5.6027]
[1740813724627,10.09343547,142.9,142.83,1.9224]
[1740813724829,12.01093547,142.9,142.83,1.9224]
[1740813725330,12.01093547,142.9,142.86,5.6017]
[1740813725533,12.01093547,142.9,142.83,1.9224]
[1740813727122,12.01093547,142.9,142.82,223.86]
[1740813727526,12.01093547,142.9,142.85,5.602]
[1740813727828,12.01093547,142.9,142.82,223.86]
[1740813728928,12.01093547,142.9,142.87,5.6016]
[1740813729330,12.01093547,142.9,142.88,5.6011]
[1740813729529,12.01093547,142.9,142.82,223.86]
[1740813729929,0.05343547,142.9,142.89,5.6008]
[1740813732540,3.55343547,142.9,142.82,223.86]
[1740813732740,0.05343547,142.9,142.82,223.86]
[1740813733039,0.05343547,142.9,142.85,5.6021]
[1740813733234,0.05343547,142.9,142.81,1.9001]
[1740813733435,5.6009,142.89,142.81,1.9001]
[1740813733735,1.8082,142.95,142.81,1.9001]
[1740813733736,0.04994638,142.87,142.81,1.9001]
[1740813734440,0.04994638,142.87,142.84,5.6024]
[1740813735238,3.54994638,142.87,142.75,224.0]
[1740813735437,3.6589,142.88,142.75,224.0]
[1740813735639,0.05209382,142.82,142.75,224.0]
[1740813736337,0.05209382,142.82,142.79,5.6045]
[1740813736534,10.04,142.83,142.71,88.75547979]
[1740813736733,0.04737657,142.82,142.77,5.6052]
[1740813736933,15.6435,142.83,142.77,5.6052]
[1740813737129,0.05106426,142.81,142.77,5.6052]
[1740813737542,0.05106426,142.81,142.78,5.6048]
[1740813737746,10.04,142.83,142.72,5.734]
[1740813738043,0.04815197,142.78,142.73,10.04]
[1740813738232,10.04,142.83,142.73,10.04]
[1740813738837,10.04,142.83,142.8,5.6039]
[1740813739039,10.04,142.83,142.73,10.04]
[1740813739434,0.04733341,142.79,142.77,0.05140752]
[1740813740035,0.04733341,142.79,142.78,5.6047]
[1740813740743,10.04,142.83,142.8,5.6043]
[1740813741437,10.04,142.83,142.81,5.6039]
[1740813741947,10.09085597,142.83,142.81,5.65000398]
[1740813745852,0.05085597,142.83,142.82,5.6035]
[1740813746240,5.6005,142.9,142.81,0.04610398]
[1740813746441,10.04,142.88,142.85,5.602]
[1740813746944,10.04,142.88,142.86,5.6019]
[1740813747240,10.04,142.88,142.79,3.7991]
[1740813747745,0.04771578,142.85,142.82,0.05009184]
[1740813749150,0.04771578,142.85,142.82,5.65339184]
[1740813750353,0.04771578,142.85,142.83,5.6031]
[1740813750654,15.6413,142.88,142.82,0.05009184]
[1740813751552,15.6413,142.88,142.83,5.6031]
[1740813751752,10.04,142.88,142.82,0.05009184]
[1740813751949,0.04713256,142.87,142.82,0.05009184]
[1740813752154,48.30606883,142.93,142.86,5.602]
[1740813752347,25.27630809,142.92,142.81,10.04]
[1740813752748,19.67660809,142.92,142.86,5.6017]
[1740813752948,19.67660809,142.92,142.81,10.04]
[1740813753148,19.67660809,142.92,142.86,5.6018]
[1740813753345,0.05044458,142.88,142.86,5.6018]
[1740813753760,0.05044458,142.88,142.85,0.05373908]
[1740813754057,25.27650809,142.92,142.86,5.6016]
[1740813754251,19.67660809,142.92,142.86,7.53]
[1740813754446,5.6004,142.9,142.86,1.9284]
[1740813754648,19.67660809,142.92,142.86,1.9284]
[1740813754846,10.04,142.92,142.86,7.5301]
[1740813755049,10.04,142.92,142.86,1.9284]
[1740813755259,0.04691947,142.9,142.86,1.9284]
[1740813755758,0.04691947,142.9,142.87,5.6013]
[1740813756354,0.04691947,142.9,142.85,5.65603908]
[1740813756656,0.04691947,142.9,142.85,0.05373908]
[1740813757253,5.6018,142.87,142.85,0.05373908]
[1740813757948,15.6418,142.87,142.85,0.05373908]
[1740813758152,10.04,142.87,142.85,0.05373908]
[1740813758353,10.08691947,142.9,142.85,0.05373908]
[1740813759159,15.68751947,142.9,142.86,5.6018]
[1740813759363,10.08691947,142.9,142.85,0.05373908]
[1740813759859,5.6015,142.88,142.85,0.05373908]
[1740813760262,10.08691947,142.9,142.85,0.05373908]
[1740813760457,5.6016,142.87,142.85,0.05373908]
[1740813760659,10.08691947,142.9,142.85,0.05373908]
[1740813760963,5.6009,142.89,142.85,0.05373908]
[1740813761664,0.04691947,142.9,142.85,0.05373908]
[1740813762459,0.04691947,142.9,142.87,5.6012]
[1740813763661,0.04691947,142.9,142.89,5.6008]
[1740813764365,0.04691947,142.9,142.88,0.05318602]
[1740813765162,5.64751947,142.9,142.88,0.05318602]
[1740813765665,0.04691947,142.9,142.88,0.05318602]
[1740813765862,5.6008,142.89,142.88,0.05318602]
[1740813767463,0.04691947,142.9,142.88,0.05318602]
[1740813767964,0.04691947,142.9,142.88,5.65428602]
[1740813768156,0.04691947,142.9,142.88,0.05318602]
[1740813768672,0.04691947,142.9,142.88,5.65418602]
[1740813769370,0.04691947,142.9,142.88,0.05318602]
[1740813769970,5.64741947,142.9,142.88,0.05318602]
[1740813770169,0.04691947,142.9,142.88,0.05318602]
[1740813771470,5.6008,142.89,142.88,0.05318602]
[1740813771665,5.6008,142.89,142.88,8.602e-05]
[1740813771866,9.1008,142.89,142.88,8.602e-05]
[1740813774972,5.6008,142.89,142.88,8.602e-05]
[1740813775575,32.76479201,142.89,142.88,8.602e-05]
[1740813777979,23.12818392,142.89,142.88,8.602e-05]
[1740813780265,26.62818392,142.89,142.88,8.602e-05]
[1740813780867,65.11094735,142.89,142.88,8.602e-05]
[1740813782381,68.31948981,142.89,142.88,8.602e-05]
[1740813782676,80.39653041,142.89,142.88,8.602e-05]
[1740813782880,101.39653041,142.89,142.88,8.602e-05]
[1740813783881,5.6037,142.82,142.79,5.6047]
[1740813784073,10.04,142.83,142.78,5.612]
[1740813784380,10.04,142.84,142.8,5.604]
[1740813784573,5.6031,142.84,142.8,5.604]
[1740813784969,0.05053283,142.83,142.81,0.04830481]
[1740813785681,5.6035,142.82,142.81,0.04830481]
[1740813788070,5.65383283,142.83,142.81,0.04830481]
[1740813788978,5.6035,142.82,142.81,0.04830481]
[1740813791786,5.6035,142.82,142.81,4.81e-06]
[1740813792090,9.1035,142.82,142.81,4.81e-06]
[1740813792384,10.9382,142.82,142.81,4.81e-06]
[1740813793486,31.9382,142.82,142.81,4.81e-06]
[1740813793687,32.237,142.82,142.81,4.81e-06]
[1740813794173,26.6335,142.82,142.7,5.6081]
[1740813794379,5.6062,142.76,142.7,5.6081]
[1740813794679,10.04,142.75,142.7,5.6081]
[1740813794887,10.04,142.74,142.7,5.6081]
[1740813795384,10.04,142.74,142.71,5.6078]
[1740813795585,0.04780447,142.73,142.71,0.04932055]
[1740813795784,10.04,142.77,142.71,0.04932055]
[1740813795983,15.6446,142.8,142.74,5.6064]
[1740813796486,5.605,142.79,142.74,5.6064]
[1740813796889,0.05238568,142.78,142.75,0.0504437]
[1740813797290,0.05238568,142.78,142.75,5.6566437]
[1740813797481,0.05238568,142.78,142.75,0.0504437]
[1740813797682,0.05238568,142.78,142.75,5.6567437]
[1740813798589,0.05238568,142.78,142.75,0.0504437]
[1740813799191,0.05238568,142.78,142.75,5.6564437]
[1740813799691,0.05238568,142.78,142.75,0.0504437]
[1740813799892,10.04,142.8,142.75,0.0504437]
[1740813800490,10.04,142.8,142.77,5.6053]
[1740813800888,10.04,142.8,142.75,0.0504437]
[1740813801081,10.08430893,142.8,142.75,0.0504437]
[1740813802990,15.68870893,142.8,142.75,5.6567437]
[1740813803890,15.68870893,142.8,142.76,5.6059]
[1740813804494,10.08430893,142.8,142.76,5.6059]
[1740813804686,10.08430893,142.8,142.77,5.6055]
[1740813804883,10.08430893,142.8,142.75,0.0504437]
[1740813805093,15.68880893,142.8,142.75,0.0504437]
[1740813805992,5.605,142.79,142.75,5.6566437]
[1740813806493,15.68870893,142.8,142.76,5.6056]
[1740813808096,5.6048,142.79,142.76,5.6056]
[1740813808588,10.08430893,142.8,142.76,5.6056]
[1740813808788,10.08430893,142.8,142.77,5.6051]
[1740813809393,15.68870893,142.8,142.77,5.6051]
[1740813811298,10.08430893,142.8,142.77,5.6051]
[1740813811498,10.08430893,142.8,142.75,0.0504437]
[1740813811499,10.08430893,142.8,142.78,5.605]
[1740813812301,0.04430893,142.8,142.78,5.605]
[1740813813897,0.04430893,142.8,142.79,5.6047]
[1740813817099,5.6033,142.83,142.79,5.6047]
[1740813817505,19.59001457,142.84,142.81,5.6038]
[1740813817506,9.55001457,142.84,142.81,5.6038]
[1740813818301,9.59599306,142.84,142.81,5.65637743]
[1740813819100,0.04597849,142.84,142.81,5.65637743]
[1740813819299,0.04597849,142.84,142.82,5.6035]
[1740813820803,0.04597849,142.84,142.81,0.05257743]
[1740813821002,5.64877849,142.84,142.81,5.65637743]
[1740813821709,5.6032,142.83,142.81,0.05257743]
[1740813822009,0.04597849,142.84,142.81,0.05257743]
[1740813822808,5.6031,142.83,142.81,0.05257743]
[1740813824711,5.6035,142.82,142.81,0.05257743]
[1740813831630,5.6033,142.83,142.81,0.05257743]
[1740813831925,0.04597849,142.84,142.81,0.05257743]
[1740813832120,5.64907849,142.84,142.81,0.05257743]
[1740813833124,0.04597849,142.84,142.81,0.05257743]
[1740813833931,0.04597849,142.84,142.82,5.6033]
[1740813834930,0.04597849,142.84,142.83,5.6031]
[1740813837828,5.6021,142.86,142.83,5.6031]
[1740813838933,5.65272266,142.86,142.83,5.6031]
[1740813839928,0.05062266,142.86,142.83,5.6031]
[1740813841434,5.65262266,142.86,142.83,5.6031]
[1740813843338,0.05062266,142.86,142.84,5.6024]
[1740813844232,0.05062266,142.86,142.83,5.603]
[1740813846238,0.05062266,142.86,142.82,3.7427]
[1740813846540,0.05062266,142.86,142.85,5.6024]
[1740813846727,5.6013,142.88,142.85,5.6024]
[1740813846931,15.6409,142.89,142.85,5.6024]
[1740813847933,0.05095232,142.88,142.86,0.05060687]
[1740813849140,5.65215232,142.88,142.86,0.05060687]
[1740813851242,0.05095232,142.88,142.86,0.05060687]
[1740813851543,0.05095232,142.88,142.86,5.65250687]
[1740813851932,0.05095232,142.88,142.86,0.05060687]
[1740813853743,5.6016,142.87,142.86,0.05060687]
[1740813858940,15.20226689,142.88,142.86,0.05060687]
[1740813859141,9.60096689,142.88,142.86,0.05060687]
[1740813859541,0.05095232,142.88,142.86,0.05060687]
[1740813861348,0.05095232,142.88,142.86,5.65250687]
[1740813862947,81.20722716,142.9,142.87,10.04]
[1740813863250,61.07722716,142.9,142.87,13.54]
[1740813863451,50.28822716,142.9,142.89,5.6008]
[1740813863843,38.20825153,142.92,142.87,10.04]
[1740813864041,0.05120414,142.91,142.87,10.04]
[1740813865249,0.05120414,142.91,142.89,5.6007]
[1740813865544,0.05120414,142.91,142.87,10.04]
[1740813865749,0.05120414,142.91,142.9,5.6004]
[1740813866649,0.05120414,142.91,142.89,5.65253591]
[1740813867345,0.05120414,142.91,142.9,5.6004]
[1740813885766,0.05120414,142.91,142.89,0.05183591]
[1740813886558,5.65130414,142.91,142.89,0.05183591]
[1740813887266,5.65130414,142.91,142.87,5.6015]
[1740813887466,5.6001,142.91,142.87,5.6015]
[1740813888365,5.6009,142.89,142.86,5.6019]
[1740813888568,5.6009,142.89,142.88,0.05167096]
[1740813888766,5.6009,142.89,142.82,224.12]
[1740813889867,5.6009,142.89,142.85,5.602]
[1740813890067,0.05353089,142.87,142.85,5.602]
[1740813891772,0.05353089,142.87,142.84,0.04499983]
[1740813892067,0.05353089,142.87,142.86,5.602]
[1740813893967,0.05353089,142.87,142.84,0.04499983]
[1740813893968,5.65513089,142.87,142.84,0.04499983]
[1740813894176,0.05353089,142.87,142.75,224.04]
[1740813894376,1.9096,142.86,142.76,10.1]
[1740813895469,0.05366779,142.82,142.8,0.04949529]
[1740813895665,0.05366779,142.82,142.8,5.65379529]
[1740813895871,0.05366779,142.82,142.8,0.04949529]
[1740813898869,0.05366779,142.82,142.8,5.65349529]
[1740813899673,0.05366779,142.82,142.8,0.04949529]
[1740813899873,0.05366779,142.82,142.81,5.6039]
[1740813900475,0.05366779,142.82,142.8,0.04949529]
[1740813903277,0.05366779,142.82,142.81,5.6039]
[1740813903774,0.05366779,142.82,142.8,0.04949529]
[1740813905678,0.05366779,142.82,142.8,5.65369529]
[1740813905985,0.05366779,142.82,142.8,0.04949529]
[1740813906184,5.65756779,142.82,142.8,0.04949529]
[1740813906379,0.05366779,142.82,142.8,0.04949529]
[1740813907488,5.6043,142.8,142.75,224.04]
[1740813907984,5.6047,142.79,142.75,224.04]
[1740813908393,12.0503,142.84,142.77,5.6052]
[1740813908595,0.04422991,142.78,142.76,0.05288285]
[1740813908798,12.0503,142.84,142.75,224.04]
[1740813909096,5.6034,142.83,142.77,5.6052]
[1740813909301,0.04523625,142.81,142.77,5.6052]
[1740813909489,0.04523625,142.81,142.79,0.04779511]
[1740813910890,0.04523625,142.81,142.79,5.65219511]
[1740813911597,0.04523625,142.81,142.8,5.6043]
[1740813920101,3.625e-05,142.81,142.8,5.6043]
[1740813920403,1.8468,142.87,142.8,5.6043]
[1740813920404,1.8468,142.87,142.8,10.08]
[1740813920604,10.08,142.91,142.8,10.08]
[1740813921305,0.04905088,142.87,142.84,0.05131028]
[1740813921507,0.04905088,142.87,142.86,5.6017]
[1740813922002,5.65085088,142.87,142.84,0.05131028]
[1740813922205,0.04905088,142.87,142.84,0.05131028]
[1740813922402,0.04905088,142.87,142.76,70.29197182]
[1740813922606,10.06,142.86,142.77,5.6054]
[1740813922811,10.06,142.86,142.76,70.19377182]
[1740813923109,5.6042,142.81,142.74,5.6064]
[1740813923497,0.05198086,142.79,142.74,5.6064]
[1740813923703,0.05198086,142.79,142.76,0.05091359]
[1740813927408,5.65708086,142.79,142.76,0.05091359]
[1740813927606,0.05198086,142.79,142.76,0.05091359]
[1740813928412,5.6055,142.77,142.76,0.05091359]
[1740813929113,0.05198086,142.79,142.76,0.05091359]
[1740813929316,5.65698086,142.79,142.76,0.05091359]
[1740813931816,0.05198086,142.79,142.76,0.05091359]
[1740813932316,0.05198086,142.79,142.76,5.65671359]
[1740813932517,5.65708086,142.79,142.76,0.05091359]
[1740813933720,0.05198086,142.79,142.76,0.05091359]
[1740813934523,0.05198086,142.79,142.76,5.65651359]
[1740813934915,5.65668086,142.79,142.76,0.05091359]
[1740813935924,0.05198086,142.79,142.76,0.05091359]
[1740813937425,0.05198086,142.79,142.72,5.6073]
[1740813937621,5.6944,142.8,142.69,121.71929465]
[1740813938426,5.6052,142.78,142.74,5.6064]
[1740813938727,0.0445501,142.76,142.74,5.6064]
[1740813940017,0.0445501,142.76,142.75,5.6063]
[1740813940524,38.19741689,142.83,142.73,0.04678716]
[1740813940723,38.19741689,142.83,142.72,10.04]
[1740813940926,38.19741689,142.83,142.78,5.6048]
[1740813941230,38.19741689,142.83,142.72,10.04]
[1740813941719,0.05217077,142.79,142.76,0.04613833]
[1740813942320,0.05217077,142.79,142.78,5.6051]
[1740813942520,0.05217077,142.79,142.76,0.04613833]
[1740813942720,0.05217077,142.79,142.77,5.6052]
[1740813942925,0.05217077,142.79,142.76,0.04613833]
[1740813943626,0.05217077,142.79,142.78,5.6051]
[1740813946422,0.05217077,142.79,142.76,0.04613833]
[1740813947022,5.65717077,142.79,142.76,0.04613833]
[1740813947227,0.05217077,142.79,142.76,0.04613833]
[1740813947722,5.6054,142.78,142.76,0.04613833]
[1740813948123,0.05217077,142.79,142.76,0.04613833]
[1740813948928,5.65687077,142.79,142.76,0.04613833]
[1740813950030,0.05217077,142.79,142.76,5.65193833]
[1740813950435,0.05217077,142.79,142.76,0.04613833]
[1740813951329,0.05217077,142.79,142.77,5.6053]
[1740813952022,0.05217077,142.79,142.76,0.04613833]
[1740813954333,0.05217077,142.79,142.76,5.65193833]
[1740813954632,0.05217077,142.79,142.76,0.04613833]
[1740813955033,5.6051,142.78,142.76,0.04613833]
[1740813955232,0.05217077,142.79,142.76,0.04613833]
[1740813958436,0.05217077,142.79,142.76,5.65183833]
[1740813958636,0.05217077,142.79,142.76,0.04613833]
[1740813961141,5.65697077,142.79,142.76,0.04613833]
[1740813962040,0.05217077,142.79,142.76,0.04613833]
[1740813962232,0.05217077,142.79,142.76,5.65203833]
[1740813964039,0.05217077,142.79,142.77,5.6055]
[1740813964339,0.05217077,142.79,142.76,0.04613833]
[1740813965340,0.05217077,142.79,142.78,5.6051]
[1740813973340,0.05217077,142.79,142.76,0.04613833]
[1740813973541,0.05217077,142.79,142.76,5.65193833]
[1740813973736,0.05217077,142.79,142.76,0.04613833]
[1740813974447,0.05217077,142.79,142.77,5.6053]
[1740813975646,0.05217077,142.79,142.76,0.04613833]
[1740813975845,0.05217077,142.79,142.77,5.6055]
[1740813977139,5.65697077,142.79,142.76,0.04613833]
[1740813977343,0.05217077,142.79,142.76,0.04613833]
[1740813977540,0.05217077,142.79,142.7,224.22]
[1740813977849,1.8469,142.8,142.7,224.22]
[1740813978445,5.6057,142.77,142.73,5.6068]
[1740813978947,0.04988567,142.76,142.74,0.04785735]
[1740813980037,5.65598567,142.76,142.74,0.04785735]
[1740813980444,0.04988567,142.76,142.74,0.04785735]
[1740813982853,5.65608567,142.76,142.74,0.04785735]
[1740813983150,0.04988567,142.76,142.74,0.04785735]
[1740813983351,5.65608567,142.76,142.74,0.04785735]
[1740813986354,5.6063,142.75,142.74,0.04785735]
[1740813988252,7.5096,142.75,142.74,0.04785735]
[1740813990049,1.9033,142.75,142.74,0.04785735]
[1740813993362,0.04988567,142.76,142.74,0.04785735]
[1740813995766,0.04988567,142.76,142.7,224.22]
[1740813996669,8.567e-05,142.76,142.71,10.04]
[1740813997155,8.567e-05,142.76,142.75,5.6063]
[1740814005271,8.567e-05,142.76,142.74,0.05073077]
[1740814005463,8.567e-05,142.76,142.74,5.65723077]
[1740814006371,8.567e-05,142.76,142.75,5.6063]
[1740814011576,8.567e-05,142.76,142.74,5.65733077]
[1740814012875,8.567e-05,142.76,142.74,0.05073077]
[1740814013072,8.567e-05,142.76,142.75,5.6063]
[1740814013574,8.567e-05,142.76,142.74,0.05073077]
[1740814013774,8.567e-05,142.76,142.74,5.65723077]
[1740814017179,8.567e-05,142.76,142.74,0.05073077]
[1740814018777,8.567e-05,142.76,142.75,5.6063]
[1740814022674,8.567e-05,142.76,142.74,5.65703077]
[1740814022871,8.567e-05,142.76,142.74,0.05073077]
[1740814023773,8.567e-05,142.76,142.75,5.6063]
[1740814031189,8.567e-05,142.76,142.74,5.65733077]
[1740814034592,8.567e-05,142.76,142.74,0.05073077]
[1740814034897,5.6063,142.75,142.74,0.05073077]
[1740814035098,9.3904,142.75,142.72,5.6074]
[1740814036386,9.3904,142.75,142.72,5.65914402]
[1740814040001,9.3904,142.75,142.72,0.05174402]
[1740814040996,3.7841,142.75,142.72,0.05174402]
[1740814041299,5.6068,142.74,142.72,0.05174402]
[1740814042400,3.7841,142.75,142.67,0.79781237]
[1740814042594,1.9521,142.73,142.67,0.79781237]
[1740814043100,10.04,142.74,142.67,0.79781237]
[1740814043300,11.9498,142.74,142.65,353.30713336]
[1740814043603,0.05117458,142.71,142.68,0.0475885]
[1740814044703,0.05117458,142.71,142.68,5.6564885]
[1740814045702,0.05117458,142.71,142.69,5.6083]
[1740814047703,0.05117458,142.71,142.7,5.6082]
[1740814048800,5.65907458,142.71,142.68,5.6563885]
[1740814049005,0.05117458,142.71,142.59,0.2997]
[1740814049304,1.7893,142.7,142.59,0.2997]
[1740814049503,15.6489,142.69,142.59,0.2997]
[1740814049901,10.04,142.69,142.58,224.3]
[1740814050100,0.04618707,142.65,142.63,0.04535159]
[1740814052108,0.04618707,142.65,142.63,5.65625159]
[1740814052510,0.04618707,142.65,142.64,5.6106]
[1740814058315,8.707e-05,142.65,142.64,5.6106]
[1740814070217,8.707e-05,142.65,142.63,194.30305159]
[1740814070425,8.707e-05,142.65,142.63,0.04535159]
[1740814070623,8.707e-05,142.65,142.55,200.68241381]
[1740814070824,8.707e-05,142.65,142.57,10.04]
[1740814071721,8.707e-05,142.65,142.64,5.6106]
[1740814074625,8.707e-05,142.65,142.63,0.04562974]
[1740814075325,8.707e-05,142.65,142.64,5.6106]
[1740814077226,8.707e-05,142.65,142.63,0.04562974]
[1740814077426,8.707e-05,142.65,142.63,5.65642974]
[1740814078928,3.50008707,142.65,142.6,5.6121]
[1740814079127,10.04,142.67,142.55,0.80751381]
[1740814079521,15.6496,142.67,142.63,5.6109]
[1740814079721,10.04,142.67,142.63,5.6109]
[1740814079925,11.848,142.67,142.63,5.6109]
[1740814080122,0.04951054,142.66,142.64,0.0470698]
[1740814080834,5.65941054,142.66,142.64,0.0470698]
[1740814086534,0.04951054,142.66,142.64,5.6575698]
[1740814087033,0.04951054,142.66,142.64,0.0470698]
[1740814087232,0.04951054,142.66,142.65,5.6102]
[1740814092130,3.8086,142.73,142.64,10.0870698]
[1740814092434,3.8086,142.73,142.64,10.04]
[1740814093028,3.8086,142.73,142.7,5.608]
[1740814093525,3.85632671,142.73,142.7,5.65660114]
[1740814093727,3.85632671,142.73,142.71,5.6078]
[1740814094934,3.85632671,142.73,142.7,0.04860114]
[1740814096335,3.85632671,142.73,142.7,5.65660114]
[1740814097336,9.46342671,142.73,142.7,0.04860114]
[1740814097543,3.85632671,142.73,142.7,0.04860114]
[1740814098237,3.85632671,142.73,142.64,10.04]
[1740814098437,3.8086,142.73,142.64,10.04]
[1740814098635,5.6076,142.72,142.68,5.609]
[1740814098941,3.8086,142.73,142.64,10.04]
[1740814099143,3.8086,142.73,142.67,5.6091]
[1740814099144,5.608,142.71,142.67,5.6091]
[1740814099342,0.05050412,142.7,142.67,5.66204916]
[1740814100041,0.05050412,142.7,142.68,5.609]
[1740814100743,0.05050412,142.7,142.67,0.05294916]
[1740814100941,5.6089,142.69,142.67,0.05294916]
[1740814101642,5.6086,142.69,142.67,0.05294916]
[1740814101941,0.05050412,142.7,142.67,0.05294916]
[1740814102241,5.6096,142.67,142.64,5.6104]
[1740814103239,5.65950535,142.67,142.64,5.6104]
[1740814103446,0.04990535,142.67,142.65,5.6102]
[1740814104643,0.04990535,142.67,142.64,5.6105]
[1740814105344,5.65950535,142.67,142.64,5.6105]
[1740814105943,0.04990535,142.67,142.61,1.8589]
[1740814106140,0.04990535,142.67,142.65,5.6101]
[1740814111048,0.04990535,142.67,142.66,5.6098]
[1740814119350,5.6075,142.72,142.69,5.6085]
[1740814120446,0.04667275,142.72,142.69,5.65840535]
[1740814121649,0.04667275,142.72,142.7,5.6082]
[1740814123648,0.04667275,142.72,142.69,0.04990535]
[1740814123838,5.6082,142.7,142.69,0.04990535]
[1740814128745,5.6089,142.69,142.61,198.6868]
[1740814128949,13.8059,142.71,142.62,1.983]
[1740814129353,5.6083,142.7,142.67,5.6093]
[1740814129755,5.66056114,142.7,142.67,5.6093]
[1740814130250,0.05226114,142.7,142.69,5.6086]
[1740814137959,0.05226114,142.7,142.66,10.04]
[1740814138153,0.05226114,142.7,142.68,5.6088]
[1740814138355,0.05226114,142.7,142.66,10.04]
[1740814139254,0.05226114,142.7,142.63,13.7787]
[1740814140355,0.05226114,142.7,142.63,3.7387]
[1740814140555,0.05226114,142.7,142.63,13.7787]
[1740814140961,5.6088,142.69,142.65,5.6099]
[1740814141162,5.6088,142.69,142.63,13.7787]
[1740814141365,5.6088,142.69,142.63,3.7387]
[1740814141558,5.6088,142.69,142.66,5.6098]
[1740814146966,0.05226114,142.7,142.63,3.7387]
[1740814147262,5.66066114,142.7,142.67,5.6094]
[1740814147461,0.05226114,142.7,142.63,3.7387]
[1740814147978,0.05226114,142.7,142.69,5.6086]
[1740814167695,5.6062,142.76,142.72,5.6072]
[1740814168694,0.05203447,142.75,142.73,0.04876842]
[1740814168895,0.05203447,142.75,142.73,5.65576842]
[1740814171894,0.05203447,142.75,142.74,5.6067]
[1740814176601,0.05203447,142.75,142.73,0.04876842]
[1740814177196,0.05203447,142.75,142.73,5.65586842]
[1740814177601,0.05203447,142.75,142.73,0.04876842]
[1740814177802,0.05203447,142.75,142.74,5.6067]
[1740814181004,0.05203447,142.75,142.73,5.65566842]
[1740814184313,0.05203447,142.75,142.74,5.6067]
[1740814195309,0.05203447,142.75,142.73,5.65566842]
[1740814195614,0.05203447,142.75,142.73,0.04876842]
[1740814195913,0.05203447,142.75,142.74,5.6067]
[1740814203811,3.447e-05,142.75,142.74,5.6067]
[1740814204013,11.43037318,142.81,142.74,10.04]
[1740814204205,38.19741689,142.81,142.74,10.04]
[1740814204816,38.19741689,142.81,142.8,5.6043]
[1740814205812,38.19741689,142.81,142.79,5.65078076]
[1740814207208,0.04712816,142.82,142.79,5.65078076]
[1740814209011,0.04712816,142.82,142.79,0.04618076]
[1740814209219,0.04712816,142.82,142.8,5.6042]
[1740814211814,0.04712816,142.82,142.81,5.6039]
[1740814214320,5.6021,142.86,142.8,1.8299]
[1740814214617,5.6021,142.86,142.83,5.6031]
[1740814215522,5.65117381,142.86,142.83,5.64835388]
[1740814215720,0.04907381,142.86,142.83,5.64835388]
[1740814216216,0.04907381,142.86,142.85,5.6024]
[1740814220521,5.6001,142.91,142.83,0.04525388]
[1740814220721,5.6001,142.91,142.8,5.6283]
[1740814221520,5.6001,142.91,142.87,5.6013]
[1740814221927,0.04547026,142.9,142.88,0.04948729]
[1740814222719,0.04547026,142.9,142.8,1.8299]
[1740814222924,1.8477,142.9,142.77,10.02]
[1740814223434,5.6032,142.83,142.79,5.6046]
[1740814223925,0.04565732,142.82,142.8,0.04742791]
[1740814226128,0.04565732,142.82,142.8,5.65162791]
[1740814226330,0.04565732,142.82,142.8,0.04742791]
[1740814226624,0.04565732,142.82,142.81,5.6039]
[1740814238832,13.7377,142.89,142.8,0.04742791]
[1740814239032,9.3187,142.89,142.86,5.6017]
[1740814239838,9.3187,142.89,142.85,5.6022]
[1740814240035,9.36596636,142.89,142.86,0.04492395]
[1740814241138,9.36596636,142.89,142.86,5.64682395]
[1740814241335,3.76496636,142.89,142.81,10.02]
[1740814241535,3.76496636,142.89,142.78,10.02]